bitfinex/quotes_SOLUSD_20260114
["timestamp","ask_amount","ask_price","bid_price","bid_amount"]
[1768387115937,81.54390274,144.76,144.71,2.56647741]
[1768387116250,81.54390274,144.76,144.71,3.27109286]
[1768387116251,84.11038015,144.76,144.71,3.27109286]
[1768387116425,62.03570315,144.76,144.71,3.27109286]
[1768387116629,2.56647741,144.78,144.73,6.90941753]
[1768387116837,0.69366838,144.77,144.73,6.90941753]
[1768387117238,0.69366838,144.79,144.75,2.56647741]
[1768387117556,0.69366838,144.79,144.76,0.70461545]
[1768387117735,0.2,144.8,144.76,3.27109286]
[1768387118232,0.2,144.8,144.77,0.70461545]
[1768387118451,0.89366838,144.8,144.76,2.56647741]
[1768387118831,0.89366838,144.8,144.77,6.90750846]
[1768387120153,0.2,144.8,144.77,7.61212391]
[1768387120530,0.2,144.8,144.77,24.88089506]
[1768387124031,0.2,144.8,144.78,0.70461545]
[1768387124232,3.26014579,144.82,144.78,0.64461545]
[1768387124963,0.69366838,144.81,144.78,0.64461545]
[1768387125664,0.69366838,144.79,144.77,6.90750846]
[1768387126068,0.69366838,144.79,144.75,17.27063612]
[1768387126369,0.69366838,144.79,144.75,24.17909898]
[1768387128865,0.69366838,144.79,144.75,24.88371443]
[1768387129052,0.69366838,144.79,144.75,27.45019184]
[1768387129554,0.69366838,144.79,144.75,10.17955572]
[1768387129758,0.69366838,144.77,144.75,6.90846286]
[1768387130861,0.69366838,144.77,144.74,6.90894016]
[1768387131346,0.69366838,144.79,144.74,27.45238344]
[1768387131556,0.69366838,144.78,144.74,27.45238344]
[1768387132363,0.69366838,144.78,144.76,6.90798563]
[1768387132658,0.69366838,144.8,144.76,10.17907849]
[1768387132865,0.69366838,144.8,144.76,27.44904256]
[1768387135355,0.69366838,144.81,144.77,0.70461545]
[1768387136464,0.69366838,144.8,144.75,0.70461545]
[1768387136653,0.69366838,144.79,144.75,0.70461545]
[1768387136855,0.69366838,144.79,144.76,6.90772324]
[1768387141264,0.69366838,144.78,144.76,6.90772324]
[1768387141463,0.69366838,144.78,144.75,6.90827353]
[1768387141678,0.69366838,144.77,144.75,6.90827353]
[1768387141883,0.69366838,144.76,144.74,6.90876115]
[1768387143486,0.69366838,144.76,144.73,6.90941753]
[1768387146981,0.68949501,144.75,144.72,6.90971363]
[1768387148589,4.66704343,144.75,144.71,6.91037246]
[1768387148885,10.91608446,144.75,144.71,6.91037246]
[1768387149289,6.90853605,144.75,144.71,6.91037246]
[1768387149460,6.90818344,144.76,144.71,6.91037246]
[1768387149889,10.88573186,144.76,144.71,6.91037246]
[1768387150582,0.68949501,144.75,144.71,6.91037246]
[1768387152293,0.68949501,144.75,144.71,24.18630363]
[1768387153495,0.68949501,144.75,144.72,0.68740396]
[1768387154702,0.68949501,144.76,144.72,0.68740396]
[1768387155393,7.59755143,144.76,144.72,7.59698964]
[1768387155573,7.56755144,144.76,144.72,7.59698964]
[1768387156092,10.91560483,144.76,144.72,6.90958568]
[1768387157574,4.00754841,144.77,144.73,0.68740396]
[1768387157783,0.68949501,144.77,144.73,0.68740396]
[1768387158293,7.59586523,144.8,144.75,0.68740396]
[1768387158595,0.68949501,144.8,144.76,0.68740396]
[1768387159098,0.7042082,144.79,144.75,0.70303177]
[1768387159298,0.7042082,144.79,144.75,4.71058018]
[1768387159503,0.7042082,144.79,144.75,11.6185961]
[1768387159796,0.7042082,144.79,144.75,7.61104769]
[1768387160708,0.7042082,144.79,144.75,11.6185961]
[1768387161704,0.7042082,144.79,144.75,7.61104769]
[1768387161889,0.7042082,144.81,144.76,4.71058018]
[1768387162609,0.7042082,144.8,144.76,4.71058018]
[1768387163196,0.7042082,144.8,144.77,6.90750846]
[1768387163687,7.61033738,144.8,144.77,6.90750846]
[1768387163875,0.7042082,144.8,144.77,6.90750846]
[1768387165516,7.61002677,144.81,144.78,7.6100042]
[1768387165687,17.25717242,144.87,144.8,4.00754841]
[1768387165887,4.00754841,144.86,144.81,4.00754841]
[1768387166108,17.25717242,144.87,144.81,4.00754841]
[1768387166316,10.91028879,144.87,144.81,4.00754841]
[1768387167008,10.91028879,144.87,144.82,4.00754841]
[1768387167211,6.90274038,144.87,144.82,10.91244104]
[1768387167410,10.91028879,144.87,144.82,10.91244104]
[1768387167611,0.7042082,144.86,144.82,10.91244104]
[1768387167805,0.67420821,144.86,144.82,10.91244104]
[1768387168213,12.6,144.88,144.82,10.91244104]
[1768387168214,127.20198322,144.91,144.84,4.71058018]
[1768387168384,4.00754841,144.9,144.85,4.00754841]
[1768387169004,121.45245852,144.91,144.86,0.70303177]
[1768387169184,10.90885965,144.9,144.86,7.60597872]
[1768387169398,4.00754841,144.9,144.86,7.60597872]
[1768387169995,111.10101026,144.91,144.86,11.61352713]
[1768387169996,115.10855867,144.91,144.86,11.61352713]
[1768387170306,0.7042082,144.9,144.86,11.61352713]
[1768387171104,4.91175661,144.92,144.87,0.70303177]
[1768387171304,11.81226848,144.92,144.87,7.60543845]
[1768387171614,0.55448081,144.91,144.87,7.60543845]
[1768387172401,11.46319149,144.91,144.87,7.60543845]
[1768387172904,0.55448081,144.91,144.87,7.60543845]
[1768387173110,4.56202922,144.91,144.87,7.60543845]
[1768387173617,0.55448081,144.91,144.87,7.60543845]
[1768387173790,0.55448081,144.91,144.87,10.90995509]
[1768387175110,11.1080206,144.92,144.88,0.68961507]
[1768387175302,11.66395268,144.92,144.88,0.68961507]
[1768387175614,4.00754841,144.91,144.88,0.68961507]
[1768387176219,4.70882258,144.91,144.87,7.59202175]
[1768387177114,0.70127417,144.91,144.88,6.90222585]
[1768387177316,0.70127417,144.91,144.87,7.59218032]
[1768387178314,0.70127417,144.91,144.88,0.68961507]
[1768387180302,0.70127417,144.91,144.87,10.91011366]
[1768387180714,7.60218079,144.91,144.87,11.59972873]
[1768387182012,0.5573855,144.9,144.87,0.68961507]
[1768387182218,0.5573855,144.9,144.86,7.59268706]
[1768387182395,0.5573855,144.9,144.86,11.60023547]
[1768387182715,0.5573855,144.9,144.87,7.59235465]
[1768387183110,0.90274227,144.92,144.87,7.59235465]
[1768387183310,0.90274227,144.92,144.87,11.59990306]
[1768387183500,4.91029068,144.92,144.87,11.59990306]
[1768387183909,7.80317499,144.92,144.87,28.85675402]
[1768387184106,0.55593208,144.91,144.87,28.85675402]
[1768387184323,0.55593208,144.91,144.88,0.68961507]
[1768387184636,0.2,144.92,144.89,0.68961507]
[1768387184806,0.2,144.92,144.9,0.68961507]
[1768387185200,0.2,144.92,144.89,4.69716348]
[1768387186122,0.2,144.92,144.89,11.59877812]
[1768387187630,0.75593208,144.93,144.89,11.59877812]
[1768387187839,0.75593208,144.93,144.89,28.85324702]
[1768387188612,0.2,144.93,144.9,4.69716348]
[1768387188831,0.2,144.93,144.91,0.68961507]
[1768387190332,0.2,144.93,144.91,7.59010324]
[1768387191515,0.2,144.93,144.91,0.68961507]
[1768387192032,0.90127417,144.93,144.9,10.90866404]
[1768387192218,0.90127417,144.93,144.91,6.90080199]
[1768387192417,0.5573855,144.92,144.9,6.90124939]
[1768387192622,4.20754841,144.93,144.9,6.90124939]
[1768387192827,4.91029068,144.93,144.9,6.90124939]
[1768387193124,0.90274227,144.93,144.9,6.90124939]
[1768387194205,0.90274227,144.96,144.92,0.68961507]
[1768387194409,7.80121598,144.96,144.92,11.59727452]
[1768387195308,0.70274227,144.95,144.91,6.90064039]
[1768387195513,4.71029068,144.95,144.91,7.59025546]
[1768387195938,0.70274227,144.94,144.91,6.90064039]
[1768387197236,0.70274227,144.92,144.89,7.59096812]
[1768387200141,7.60310342,144.92,144.89,7.59096812]
[1768387200328,0.70274227,144.92,144.89,7.59096812]
[1768387201411,7.60319615,144.92,144.89,0.68961507]
[1768387201811,7.60319615,144.92,144.88,7.59166429]
[1768387202120,7.60319615,144.92,144.89,0.68961507]
[1768387202719,10.16334995,144.92,144.89,0.68961507]
[1768387203615,7.60319615,144.92,144.89,0.68961507]
[1768387204221,0.70274227,144.93,144.89,10.15143595]
[1768387204526,0.70274227,144.93,144.85,12.58]
[1768387204527,0.70274227,144.93,144.91,6.900835]
[1768387205546,10.11313243,144.94,144.9,7.60055886]
[1768387206153,3.21341391,144.94,144.9,7.60055886]
[1768387207418,0.65326011,144.95,144.91,0.6994691]
[1768387207622,7.75189095,144.96,144.92,3.2596229]
[1768387208224,0.85326011,144.96,144.93,3.2596229]
[1768387208438,0.2,144.96,144.93,3.2596229]
[1768387208841,0.2,144.96,144.94,9.45956045]
[1768387209030,0.2,144.96,144.94,6.89940665]
[1768387209228,0.2,144.96,144.93,10.15928473]
[1768387209846,0.2,144.96,144.94,0.6994691]
[1768387210225,0.2,144.96,144.94,10.15887434]
[1768387211638,0.2,144.96,144.95,0.6994691]
[1768387212044,0.2,144.96,144.95,7.59839976]
[1768387212630,7.5509248,144.98,144.95,7.59839976]
[1768387212631,3.21341391,144.99,144.95,0.6994691]
[1768387212836,0.65326011,144.99,144.95,0.6994691]
[1768387213036,0.65326011,144.99,144.95,7.59832713]
[1768387213235,3.21341391,144.99,144.95,7.59832713]
[1768387214049,7.55072513,144.99,144.95,7.59832713]
[1768387215545,7.55072513,144.99,144.95,10.15848093]
[1768387215743,7.55072513,144.99,144.96,0.6994691]
[1768387216527,0.65326011,144.98,144.94,10.1588487]
[1768387216948,10.11087893,144.99,144.95,7.59839006]
[1768387217255,7.55000075,145.0,144.96,0.6994691]
[1768387217464,0.65326011,144.99,144.96,0.6994691]
[1768387217766,0.65326011,144.99,144.96,7.5978211]
[1768387220034,7.5504182,144.99,144.96,0.6994691]
[1768387220537,7.5504182,144.99,144.96,7.59792088]
[1768387222033,7.5504182,144.99,144.96,0.6994691]
[1768387222233,10.110572,144.99,144.96,0.6994691]
[1768387223135,7.5504182,144.99,144.96,0.6994691]
[1768387223335,10.110572,144.99,144.96,0.6994691]
[1768387223535,10.110572,144.99,144.95,7.558158]
[1768387224360,7.5504182,144.99,144.95,7.558158]
[1768387224535,7.5504182,144.99,144.96,0.65929883]
[1768387224851,7.55029142,144.99,144.96,0.65929883]
[1768387226241,7.55029142,144.99,144.96,7.55767835]
[1768387228552,0.65326011,144.99,144.96,7.55767835]
[1768387228952,10.1688693,145.0,144.96,7.55767835]
[1768387229265,7.6087155,145.0,144.96,7.55767835]
[1768387229562,10.1688693,145.0,144.96,7.55767835]
[1768387230861,7.6087155,145.0,144.96,10.11783215]
[1768387231046,10.1688693,145.0,144.96,7.55767835]
[1768387231649,10.1688693,145.0,144.97,0.65929883]
[1768387232374,17.44079211,145.01,144.98,3.21945263]
[1768387232375,0.2,145.01,144.98,3.21945263]
[1768387232665,0.2,145.01,144.99,0.65929883]
[1768387232868,0.2,145.01,144.99,0.59929883]
[1768387233646,0.2,145.01,144.99,7.49624234]
[1768387234553,0.2,145.01,144.99,0.59929883]
[1768387236364,3.24574235,145.0,144.96,0.67493445]
[1768387236678,0.68558855,144.99,144.96,7.57311754]
[1768387237042,0.68558855,144.99,144.96,10.13327134]
[1768387237350,0.68558855,144.99,144.97,6.89797125]
[1768387237780,0.68558855,144.99,144.96,7.57319795]
[1768387237949,3.24574235,145.0,144.96,7.57319795]
[1768387238347,3.24574235,145.0,144.96,10.13335175]
[1768387238569,0.68558855,145.0,144.96,10.13335175]
[1768387238872,3.24574235,145.0,144.96,7.57319795]
[1768387239067,3.24574235,145.0,144.96,10.13335175]
[1768387239270,7.09612408,145.01,144.97,0.67493445]
[1768387239271,10.34186643,145.01,144.97,0.67493445]
[1768387239474,3.44574235,145.01,144.97,0.67493445]
[1768387239658,0.68558855,145.0,144.97,0.67493445]
[1768387240146,0.68558855,145.0,144.97,7.57273705]
[1768387243270,0.2,145.01,144.99,2.5601538]
[1768387243456,0.2,145.01,144.99,9.45718118]
[1768387243778,0.2,145.01,144.99,10.13211563]
[1768387245255,0.2,145.01,144.99,7.57196183]
[1768387245449,0.2,145.01,144.99,10.13211563]
[1768387246071,63.2124138,145.03,145.01,0.67493445]
[1768387246264,2.6454135,145.04,145.01,0.67493445]
[1768387246571,0.68558855,145.03,145.0,7.57128848]
[1768387247077,3.24574235,145.03,144.99,7.57177798]
[1768387247659,0.68558855,145.02,144.99,6.89684353]
[1768387247852,0.68558855,145.01,144.99,6.89684353]
[1768387248053,0.68558855,145.01,144.99,6.83684353]
[1768387249187,0.68558855,145.02,144.99,6.83684353]
[1768387252979,3.24574235,145.02,144.99,6.83684353]
[1768387253370,0.68558855,145.0,144.98,6.89730986]
[1768387254087,3.24574235,145.01,144.98,6.89730986]
[1768387254662,0.68558855,145.0,144.98,6.89730986]
[1768387254973,0.68558855,145.0,144.97,7.57273935]
[1768387257181,0.68558855,145.0,144.95,19.80699778]
[1768387257367,0.68558855,144.99,144.96,6.89845474]
[1768387258582,0.68558855,144.99,144.96,7.57338919]
[1768387260683,0.68558855,144.97,144.93,0.67493445]
[1768387260987,3.24574235,144.97,144.93,0.67493445]
[1768387261483,3.24574235,144.97,144.94,7.57404954]
[1768387261683,3.24574235,144.97,144.94,0.67493445]
[1768387261890,3.24574235,144.97,144.91,29.83137247]
[1768387261891,0.68558855,144.95,144.92,0.67493445]
[1768387262073,0.65935044,144.95,144.92,0.67493445]
[1768387262593,2.5601538,144.96,144.92,0.67493445]
[1768387262798,2.5601538,144.96,144.92,7.57500411]
[1768387263182,9.45869734,144.96,144.92,7.57500411]
[1768387263384,10.89692051,144.96,144.92,7.57500411]
[1768387263785,6.89854354,144.96,144.92,6.90006966]
[1768387263982,0.68558855,144.95,144.92,6.90006966]
[1768387265218,4.71572142,144.93,144.89,0.7019632]
[1768387265377,4.71572142,144.93,144.9,7.60300723]
[1768387265577,0.71734445,144.93,144.91,6.9008195]
[1768387266075,4.71572142,144.95,144.91,7.6027827]
[1768387266274,0.71734445,144.95,144.91,7.6027827]
[1768387266796,0.71734445,144.95,144.91,24.8548702]
[1768387267006,0.71734445,144.95,144.92,0.7019632]
[1768387267309,0.71734445,144.95,144.92,7.60187402]
[1768387267696,4.71572142,144.96,144.92,7.60187402]
[1768387268617,4.71572142,144.96,144.93,0.7019632]
[1768387268818,3.99837697,144.96,144.93,0.7019632]
[1768387269312,3.99837697,144.96,144.93,7.60167545]
[1768387269516,3.99837697,144.98,144.94,0.7019632]
[1768387269709,0.71734445,145.0,144.94,0.7019632]
[1768387270015,4.71572142,145.0,144.95,0.7019632]
[1768387270219,11.61232692,145.0,144.95,0.7019632]
[1768387270417,3.99837697,144.99,144.95,0.7019632]
[1768387270597,3.99837697,144.98,144.95,0.7019632]
[1768387271499,7.61451667,144.99,144.96,0.7019632]
[1768387271705,3.99837697,144.98,144.95,7.60075506]
[1768387272522,7.61451667,144.99,144.95,7.60075506]
[1768387272726,3.99837697,144.98,144.95,7.60075506]
[1768387272898,3.99837697,144.97,144.95,7.60075506]
[1768387274724,0.71734445,144.98,144.95,7.60075506]
[1768387274909,4.71572142,144.98,144.95,7.60075506]
[1768387277127,3.99837697,144.97,144.95,7.60075506]
[1768387279918,11.61370285,144.97,144.94,0.7019632]
[1768387280119,11.61370285,144.97,144.92,7.60209667]
[1768387280120,4.72333639,144.95,144.92,7.60209667]
[1768387280303,6.89798143,144.97,144.92,7.60209667]
[1768387280504,3.99837697,144.95,144.92,0.7019632]
[1768387281206,3.99837697,144.95,144.92,7.60226018]
[1768387281418,24.14292866,144.97,144.92,7.60226018]
[1768387281622,3.99837697,144.95,144.93,0.66271776]
[1768387283827,6.89880264,144.96,144.93,0.66271776]
[1768387284028,3.99837697,144.95,144.93,0.66271776]
[1768387287105,3.99837697,144.95,144.93,7.56254747]
[1768387287426,10.89646245,144.97,144.94,0.66271776]
[1768387287726,3.99837697,144.96,144.94,0.66271776]
[1768387288313,10.89687272,144.96,144.94,0.66271776]
[1768387288924,3.99837697,144.95,144.94,0.66271776]
[1768387289122,3.99837697,144.95,144.91,6.9006087]
[1768387289428,3.99837697,144.94,144.91,6.9006087]
[1768387290332,3.99837697,144.94,144.89,24.15559107]
[1768387291006,3.99837697,144.94,144.9,0.66271776]
[1768387291627,3.96837697,144.94,144.91,0.66271776]
[1768387292531,3.99837697,144.93,144.91,0.66271776]
[1768387293816,3.99837697,144.93,144.91,7.56346456]
[1768387296212,4.70558424,144.92,144.87,17.92858435]
[1768387296416,3.99837697,144.89,144.85,0.67233733]
[1768387297527,3.99837697,144.89,144.86,0.67233733]
[1768387298057,7.6083656,144.91,144.86,0.67233733]
[1768387298058,3.99837697,144.88,144.86,0.67233733]
[1768387298709,3.99837697,144.87,144.86,0.67233733]
[1768387299119,3.99837697,144.88,144.86,0.67233733]
[1768387299340,6.90180044,144.89,144.86,0.67233733]
[1768387299536,3.99837697,144.88,144.86,7.57548138]
[1768387301838,4.70558424,144.89,144.86,7.57548138]
[1768387302153,3.99837697,144.89,144.87,0.67233733]
[1768387303032,17.25139159,144.92,144.87,0.67233733]
[1768387303033,7.60826344,144.91,144.87,0.67233733]
[1768387303332,3.99837697,144.89,144.87,7.57498343]
[1768387304131,17.25139159,144.92,144.87,7.57498343]
[1768387304132,0.70720727,144.95,144.89,0.67233733]
[1768387304457,3.99837697,144.93,144.89,0.67233733]
[1768387304637,3.99837697,144.94,144.9,0.67233733]
[1768387304832,11.60473211,144.95,144.91,0.67233733]
[1768387305242,3.99837697,144.94,144.91,0.67233733]
[1768387305433,10.89783053,144.94,144.91,0.67233733]
[1768387305937,3.99837697,144.94,144.91,7.57310774]
[1768387306127,10.89782939,144.94,144.91,0.67233733]
[1768387306333,3.99837697,144.93,144.9,0.67233733]
[1768387306957,4.70558424,144.93,144.9,0.67233733]
[1768387307433,4.70558424,144.93,144.9,7.57350892]
[1768387308457,3.99837697,144.93,144.91,0.67233733]
[1768387312359,11.60503666,144.94,144.91,0.67233733]
[1768387312653,3.99837697,144.94,144.92,0.67233733]
[1768387312864,10.89748515,144.95,144.92,0.67233733]
[1768387314458,3.99837697,144.94,144.92,0.67233733]
[1768387314764,3.99837697,144.93,144.9,7.5734414]
[1768387314967,3.96837695,144.93,144.9,7.5734414]
[1768387315942,7.606689,144.94,144.9,0.67233733]
[1768387316253,0.70720727,144.92,144.89,7.57400828]
[1768387316441,4.70558424,144.93,144.9,0.67233733]
[1768387318367,4.70558424,144.93,144.89,7.57400828]
[1768387318560,0.70720727,144.91,144.89,6.90167095]
[1768387318768,0.67720726,144.91,144.89,6.90167095]
[1768387319561,3.99837697,144.92,144.89,7.57400828]
[1768387320261,10.89886949,144.92,144.89,7.57400828]
[1768387320956,3.99837697,144.91,144.88,7.5743813]
[1768387321153,3.99837697,144.9,144.88,7.5743813]
[1768387321351,4.70558424,144.9,144.87,6.90254044]
[1768387321563,4.70558424,144.9,144.87,7.57487777]
[1768387323271,3.99837697,144.9,144.87,7.57487777]
[1768387325468,2.56107953,144.9,144.87,7.57487777]
[1768387327662,2.56107953,144.9,144.88,0.67199293]
[1768387328174,3.2682868,144.91,144.88,0.67199293]
[1768387328567,10.16917663,144.91,144.88,0.67199293]
[1768387334073,3.24202323,144.93,144.89,0.67199293]
[1768387335251,3.24202323,144.93,144.9,0.67199293]
[1768387335252,10.1420098,144.93,144.9,0.67199293]
[1768387335976,3.24202323,144.92,144.89,7.57371465]
[1768387337975,6.89998657,144.93,144.9,0.67199293]
[1768387338174,3.24202323,144.94,144.9,0.67199293]
[1768387339174,3.24202323,144.94,144.91,6.900835]
[1768387339777,2.56107953,144.93,144.91,6.900835]
[1768387340683,0.6809437,144.94,144.91,6.900835]
[1768387340979,2.56107953,144.93,144.91,6.900835]
[1768387341676,0.69510195,144.92,144.9,6.90111005]
[1768387341858,3.25618148,144.92,144.89,0.7076708]
[1768387342178,3.25618148,144.92,144.89,7.60930768]
[1768387344566,0.69510195,144.92,144.89,7.60930768]
[1768387345583,3.25618148,144.92,144.89,7.60930768]
[1768387346878,0.69510195,144.92,144.89,7.60930768]
[1768387349183,10.15613899,144.93,144.9,0.7076708]
[1768387350668,10.15613899,144.93,144.89,7.60910519]
[1768387350876,10.15613899,144.93,144.9,0.7076708]
[1768387352887,10.15613899,144.93,144.9,7.60890871]
[1768387353586,10.15613899,144.93,144.9,0.7076708]
[1768387354489,2.56107953,144.92,144.9,0.7076708]
[1768387355075,3.25618148,144.92,144.89,7.6092567]
[1768387355477,0.69510195,144.92,144.89,7.6092567]
[1768387355693,3.25618148,144.92,144.89,7.6092567]
[1768387356290,2.56107953,144.92,144.9,0.68278066]
[1768387356491,0.71337648,144.93,144.9,0.68278066]
[1768387356671,3.27445601,144.93,144.9,0.68278066]
[1768387357574,0.71337648,144.92,144.89,24.83883546]
[1768387359197,3.27445601,144.93,144.9,7.58381808]
[1768387362396,2.56107953,144.92,144.9,0.68278066]
[1768387362571,2.56107953,144.92,144.9,7.58403846]
[1768387365395,3.27445601,144.92,144.89,7.58450314]
[1768387365696,0.71337648,144.9,144.87,6.90256381]
[1768387367393,0.71337648,144.89,144.87,6.90256381]
[1768387368102,0.71337648,144.89,144.86,6.90307743]
[1768387368103,0.71337648,144.88,144.86,6.90307743]
[1768387368280,0.71337648,144.87,144.86,6.90307743]
[1768387368798,0.71337648,144.86,144.85,6.90369347]
[1768387369202,3.27445601,144.87,144.85,6.90369347]
[1768387369492,2.56107953,144.87,144.85,6.90369347]
[1768387369699,3.27445601,144.88,144.85,6.90369347]
[1768387371803,2.56107953,144.86,144.84,7.58678341]
[1768387372496,2.53107954,144.86,144.84,7.58678341]
[1768387373202,2.56107953,144.85,144.83,7.68729398]
[1768387374304,3.27445601,144.86,144.83,7.68729398]
[1768387374494,9.46430561,144.86,144.83,7.00451332]
[1768387374699,3.27445601,144.86,144.83,7.68729398]
[1768387380108,0.71337648,144.85,144.83,7.00451332]
[1768387380409,0.68337649,144.85,144.83,7.00451332]
[1768387380595,0.6533765,144.85,144.83,7.00451332]
[1768387382110,17.25519147,144.89,144.83,7.00451332]
[1768387382111,6.90246134,144.88,144.84,0.68278066]
[1768387382291,2.56107953,144.86,144.83,7.00451332]
[1768387382810,2.56107953,144.86,144.83,7.68729398]
[1768387383004,2.56107953,144.87,144.83,7.68729398]
[1768387383593,2.56107953,144.86,144.83,7.68729398]
[1768387384006,3.27445601,144.86,144.83,7.68729398]
[1768387384208,3.27445601,144.87,144.84,0.68278066]
[1768387384406,3.27445601,144.88,144.84,0.68278066]
[1768387384800,0.37526651,144.87,144.84,0.68278066]
[1768387385088,2.56107953,144.88,144.84,0.68278066]
[1768387385390,4.00274919,144.88,144.84,7.58648789]
[1768387386902,0.61716706,144.87,144.84,7.58648789]
[1768387389708,0.099,144.86,144.84,6.90370723]
[1768387389913,0.06900001,144.86,144.84,6.90370723]
[1768387390814,4.00274919,144.87,144.85,0.65972387]
[1768387391116,4.00274919,144.86,144.85,0.65972387]
[1768387391614,4.00274919,144.86,144.83,7.66419139]
[1768387392694,4.00274919,144.86,144.84,0.65972387]
[1768387396608,4.00274919,144.85,144.83,0.75972387]
[1768387396806,0.58228539,144.84,144.83,0.1]
[1768387397016,0.5522854,144.84,144.83,0.1]
[1768387399205,0.52228541,144.84,144.83,0.1]
[1768387399405,4.00274919,144.84,144.81,7.00515897]
[1768387399606,4.00274919,144.84,144.81,7.66974418]
[1768387400025,4.00274919,144.84,144.82,0.66458521]
[1768387402521,4.10174919,144.84,144.81,7.66974418]
[1768387405612,4.00274919,144.84,144.82,7.56942107]
[1768387406323,3.9727492,144.84,144.82,7.56942107]
[1768387407107,4.0717492,144.84,144.81,7.67012081]
[1768387407622,3.9727492,144.84,144.81,7.0055356]
[1768387407808,3.9727492,144.84,144.82,0.66458521]
[1768387408411,4.00274919,144.85,144.82,7.56965094]
[1768387408729,4.00274919,144.85,144.83,0.66458521]
[1768387410306,10.90658337,144.85,144.83,0.66458521]
[1768387413132,4.00274919,144.84,144.82,0.66458521]
[1768387418944,6.90422427,144.84,144.81,7.00540052]
[1768387419148,4.00274919,144.82,144.81,0.1]
[1768387419311,3.9727492,144.82,144.81,0.1]
[1768387419516,3.07400704,144.82,144.81,0.1]
[1768387419847,2e-08,144.82,144.81,0.1]
[1768387420337,4.10499805,144.83,144.81,0.1]
[1768387424537,4.10499805,144.83,144.81,7.00554275]
[1768387425738,0.10224886,144.83,144.81,7.00554275]
[1768387427730,4.42991628,144.84,144.81,7.66240608]
[1768387428753,11.33331519,144.86,144.82,0.65686333]
[1768387429123,0.099,144.85,144.82,0.65686333]
[1768387429323,0.099,144.85,144.81,7.00554275]
[1768387429525,0.099,144.85,144.81,7.66240608]
[1768387430652,4.10174919,144.85,144.81,7.66240608]
[1768387431535,0.099,144.85,144.82,0.65686333]
[1768387432050,0.099,144.85,144.81,11.66515527]
[1768387432236,0.099,144.85,144.82,0.65686333]
[1768387433134,4.10174919,144.85,144.82,0.65686333]
[1768387433443,11.00552534,144.85,144.82,0.65686333]
[1768387433753,4.00274919,144.83,144.81,0.1]
[1768387434139,4.42991628,144.83,144.81,0.1]
[1768387434343,4.00274919,144.83,144.81,0.1]
[1768387434546,4.10174919,144.83,144.81,0.1]
[1768387435554,4.00274919,144.84,144.82,0.65686333]
[1768387437851,7.330576,144.86,144.83,0.65686333]
[1768387438035,4.00274919,144.85,144.83,0.65686333]
[1768387440351,0.10224886,144.84,144.82,6.9051108]
[1768387440552,4.00274919,144.85,144.82,7.56197413]
[1768387440847,6.90340891,144.86,144.83,0.65686333]
[1768387441049,4.00274919,144.85,144.83,0.65686333]
[1768387441845,4.00274919,144.84,144.82,7.56197413]
[1768387442047,4.00274919,144.84,144.82,0.65686333]
[1768387444258,4.00274919,144.84,144.82,7.56194709]
[1768387445359,2.56332409,144.84,144.82,7.56194709]
[1768387447041,2.5333241,144.84,144.82,7.56194709]
[1768387447964,2.56332409,144.83,144.82,7.56194709]
[1768387449661,2.56332409,144.84,144.82,7.56194709]
[1768387451262,2.95750951,144.84,144.82,6.90508376]
[1768387453766,2.96049119,144.85,144.82,7.60541651]
[1768387458380,2.56332409,144.84,144.82,7.60541651]
[1768387461885,7.3008787,144.85,144.82,7.60541651]
[1768387462182,2.56332409,144.84,144.82,7.60541651]
[1768387463772,2.56332409,144.84,144.82,0.70033275]
[1768387463960,9.86420279,144.85,144.82,0.70033275]
[1768387464474,9.86420279,144.85,144.82,7.60544296]
[1768387470485,7.3008787,144.85,144.82,0.70033275]
[1768387470673,9.86420279,144.85,144.82,0.70033275]
[1768387472989,9.86420279,144.85,144.82,7.60537712]
[1768387473184,9.46703569,144.85,144.83,0.6907435]
[1768387475375,12.9971671,144.87,144.84,0.65389929]
[1768387475579,2.56332409,144.85,144.83,0.65389929]
[1768387476674,2.56332409,144.84,144.83,0.65389929]
[1768387477063,2.56332409,144.84,144.82,7.5587318]
[1768387477865,1e-08,144.83,144.81,0.75389929]
[1768387478068,1e-08,144.83,144.81,7.65939486]
[1768387479169,1e-08,144.83,144.82,0.65389929]
[1768387480167,1e-08,144.83,144.81,7.00549557]
[1768387482084,1e-08,144.83,144.81,7.65939486]
[1768387482284,2.56332409,144.84,144.81,7.65939486]
[1768387483197,2.56332409,144.84,144.82,7.55898416]
[1768387484082,3.24927069,144.84,144.82,6.90508487]
[1768387484577,3.24927069,144.84,144.82,7.55898416]
[1768387485782,1.83832409,144.84,144.82,6.90508487]
[1768387485987,3.24927069,144.86,144.83,7.55854611]
[1768387491282,7.58791443,144.89,144.84,0.65389929]
[1768387491486,3.24927069,144.88,144.84,0.65389929]
[1768387491886,0.6859466,144.87,144.84,0.65389929]
[1768387492086,35.62006354,144.91,144.84,0.65389929]
[1768387492087,6.90152444,144.9,144.84,0.65389929]
[1768387492282,2.56332409,144.89,144.84,0.65389929]
[1768387493193,2.56332409,144.89,144.85,7.55759276]